{"text_format":"3","workbook":"xlsx","n_sheets":4,"sheets":["Início","PARÂMETROS DE PROJETO","DETALHES DO PROJETO","TOTAIS DO PROJETO"],"not_rendered":{"charts":2,"defined_names":3,"pivot_tables":1},"read":"whole","date_system":"1900"}

{"sheet":"Início","index":0,"n_rows":8,"n_cols":2,"rows_kept":8}
[null,"SOBRE ESTE MODELO"]
[]
[null,"Use esta pasta de trabalho para acompanhar os parâmetros de projeto, detalhes do projeto e totais do projeto durante o planejamento de projeto de advocacia."]
[null,"Preencha o nome da empresa na planilha parâmetros de projeto e é automaticamente atualizado em outras planilhas."]
[null,"Insira informações na planilha parâmetros de projeto para atualizar os gráficos de coluna e na planilha de detalhes do projeto. Tabela dinâmica na planilha totais do projeto é atualizada automaticamente."]
[null,"Observação:  "]
[null,"Há instruções adicionais na coluna A de cada planilha. Este texto está oculto de propósito. Para removê-lo, selecione a coluna A e selecione Excluir. Para reexibir o texto, selecione a coluna A e altere a cor da fonte."]
[null,"Para saber mais sobre as tabelas na planilha, pressione Shift e F10 em uma tabela, selecione a opção TABELA e depois TEXTO ALTERNATIVO. Para tabela dinâmica na planilha totais do projeto, pressione SHIFT e F10 em tabela, selecione as opções de tabela dinâmica e, em seguida, selecione a guia texto ALT."]

{"sheet":"PARÂMETROS DE PROJETO","index":1,"n_rows":19,"n_cols":9,"rows_kept":19}
["Crie parâmetros de projeto nesta planilha. Insira o Nome da empresa na célula à direita. Há instruções úteis nas células desta coluna.","Nome da empresa"]
["O título desta planilha está na célula à direita.","Planejamento de projeto de advocacia"]
["Mensagem de confidencialidade está na célula à direita.",{"$f":"\"O \"&B1&\" é Confidencial\"","v":"O Nome da empresa é Confidencial"}]
["A dica está na célula à direita.","As células sombreadas são calculadas para você. Não é necessário digitar nada nelas."]
["Insira os detalhes na tabela de parâmetros, começando na célula à direita. A próxima instrução está na célula A12.","TIPO DE PROJETO","PARCEIRO GERAL","ADVOGADO EMPRESARIAL","DEFESA LITIGANTE","ADVOGADO DE PROPRIEDADE INTELECTUAL","ADVOGADO DE FALÊNCIA","ADMINISTRADOR DE EQUIPE","TOTAL"]
[null,"Incorporação de empresas",{"v":0.1,"d":"10%"},{"v":0.4,"d":"40%"},{"v":0,"d":"0%"},{"v":0,"d":"0%"},{"v":0,"d":"0%"},{"v":0.5,"d":"50%"},{"$f":"SUM(Parâmetros[[#This Row],[PARCEIRO GERAL]:[ADMINISTRADOR DE EQUIPE]])","v":{"v":1,"d":"100%"}}]
[null,"Aquisição de empresas",{"v":0.1,"d":"10%"},{"v":0.4,"d":"40%"},{"v":0,"d":"0%"},{"v":0.1,"d":"10%"},{"v":0,"d":"0%"},{"v":0.4,"d":"40%"},{"$f":"SUM(Parâmetros[[#This Row],[PARCEIRO GERAL]:[ADMINISTRADOR DE EQUIPE]])","v":{"v":1,"d":"100%"}}]
[null,"Defesa de responsabilidade de produto",{"v":0.2,"d":"20%"},{"v":0,"d":"0%"},{"v":0.5,"d":"50%"},{"v":0,"d":"0%"},{"v":0,"d":"0%"},{"v":0.3,"d":"30%"},{"$f":"SUM(Parâmetros[[#This Row],[PARCEIRO GERAL]:[ADMINISTRADOR DE EQUIPE]])","v":{"v":1,"d":"100%"}}]
[null,"Aplicativo de patente",{"v":0.1,"d":"10%"},{"v":0,"d":"0%"},{"v":0,"d":"0%"},{"v":0.6,"d":"60%"},{"v":0,"d":"0%"},{"v":0.3,"d":"30%"},{"$f":"SUM(Parâmetros[[#This Row],[PARCEIRO GERAL]:[ADMINISTRADOR DE EQUIPE]])","v":{"v":1,"d":"100%"}}]
[null,"Ação judicial do funcionário",{"v":0.2,"d":"20%"},{"v":0.1,"d":"10%"},{"v":0.4,"d":"40%"},{"v":0,"d":"0%"},{"v":0,"d":"0%"},{"v":0.3,"d":"30%"},{"$f":"SUM(Parâmetros[[#This Row],[PARCEIRO GERAL]:[ADMINISTRADOR DE EQUIPE]])","v":{"v":1,"d":"100%"}}]
[null,"Falência",{"v":0.1,"d":"10%"},{"v":0.2,"d":"20%"},{"v":0,"d":"0%"},{"v":0,"d":"0%"},{"v":0.4,"d":"40%"},{"v":0.3,"d":"30%"},{"$f":"SUM(Parâmetros[[#This Row],[PARCEIRO GERAL]:[ADMINISTRADOR DE EQUIPE]])","v":{"v":1,"d":"100%"}}]
["Insira taxas misturadas nas células à direita, células C12 a H12. A próxima instrução está na célula A14.","Taxas misturadas",{"v":350,"d":"R$ 350"},{"v":250,"d":"R$ 250"},{"v":300,"d":"R$ 300"},{"v":275,"d":"R$ 275"},{"v":225,"d":"R$ 225"},{"v":125,"d":"R$ 125"}]
[]
["O gráfico de colunas mostrando comparação entre custos planejadas versus custo real na célula à direita e o gráfico de colunas mostrando comparação entre horas planejadas versus horas reais na célula F14."]
[null,null,"PARCEIRO GERAL","NEGÓCIOS","DEFESA LITIGANTE","PROPRIEDADE INTELECTUAL","FALÊNCIA","ADMINISTRADOR DE EQUIPE"]
[null,"CUSTOS PLANEJADOS",{"$f":"SUBTOTAL(109,Detalhes[PARCEIRO GERAL])","v":{"v":78750,"d":"R$ 78,750.00"}},{"$f":"SUBTOTAL(109,Detalhes[ADVOGADO EMPRESARIAL])","v":{"v":66250,"d":"R$ 66,250.00"}},{"$f":"SUBTOTAL(109,Detalhes[DEFESA LITIGANTE])","v":{"v":105000,"d":"R$ 105,000.00"}},{"$f":"SUBTOTAL(109,Detalhes[ADVOGADO DE PROPRIEDADE INTELECTUAL])","v":{"v":35750,"d":"R$ 35,750.00"}},{"$f":"SUBTOTAL(109,Detalhes[ADVOGADO DE FALÊNCIA])","v":{"v":0,"d":"R$ 0.00"}},{"$f":"SUBTOTAL(109,Detalhes[ADMINISTRADOR DE EQUIPE])","v":{"v":66250,"d":"R$ 66,250.00"}}]
[null,"CUSTO REAL",{"$f":"SUBTOTAL(109,Detalhes[PARCEIRO GERAL 2])","v":{"v":79275,"d":"R$ 79,275.00"}},{"$f":"SUBTOTAL(109,Detalhes[ADVOGADO EMPRESARIAL 2])","v":{"v":67375,"d":"R$ 67,375.00"}},{"$f":"SUBTOTAL(109,Detalhes[DEFESA LITIGANTE 2])","v":{"v":105600,"d":"R$ 105,600.00"}},{"$f":"SUBTOTAL(109,Detalhes[ADVOGADO DE PROPRIEDADE INTELECTUAL 2])","v":{"v":34650,"d":"R$ 34,650.00"}},{"$f":"SUBTOTAL(109,Detalhes[ADVOGADO DE FALÊNCIA 2])","v":{"v":0,"d":"R$ 0.00"}},{"$f":"SUBTOTAL(109,Detalhes[ADMINISTRADOR DE EQUIPE 2])","v":{"v":67000,"d":"R$ 67,000.00"}}]
[null,"HORAS PLANEJADAS",{"$f":"C16/$C$12","v":{"v":225,"d":"225.00"}},{"$f":"D16/$C$12","v":{"v":189.28571428571428,"d":"189.29"}},{"v":300,"d":"300.00"},{"v":102.14285714285714,"d":"102.14"},{"v":0,"d":"0.00"},{"v":189.28571428571428,"d":"189.29"}]
[null,"HORAS REAIS",{"$f":"C17/$C$12","v":{"v":226.5,"d":"226.50"}},{"$f":"D17/$C$12","v":{"v":192.5,"d":"192.50"}},{"$f":"E17/$C$12","v":{"v":301.7142857142857,"d":"301.71"}},{"$f":"F17/$C$12","v":{"v":99,"d":"99.00"}},{"$f":"G17/$C$12","v":{"v":0,"d":"0.00"}},{"$f":"H17/$C$12","v":{"v":191.42857142857142,"d":"191.43"}}]

{"sheet":"DETALHES DO PROJETO","index":2,"n_rows":10,"n_cols":25,"rows_kept":10,"merged":[[1,24,8,28]]}
["Crie detalhes do projeto nesta planilha. O Nome da empresa é atualizado automaticamente na célula à direita. Há instruções úteis nas células desta coluna. Pressione seta para baixo para começar.",{"$f":"'PARÂMETROS DE PROJETO'!B1","v":"Nome da empresa"}]
["O título desta planilha está na célula à direita e a dica de informações na célula Y2.",{"$f":"'PARÂMETROS DE PROJETO'!B2","v":"Planejamento de projeto de advocacia"},{"$nulls":22},"INFORMAÇÕES:\nPara adicionar uma linha, selecione a célula mais inferior à direita no corpo da tabela (não a linha de totais) e pressione a tecla Tab ou pressione SHIFT e F10 dentro da tabela onde você deseja a linha inserida e selecione Inserir | Linhas da tabela acima/abaixo.\nVerifique se todas as linhas não utilizadas forem excluídas, como a tabela dinâmica totais do projeto usará todas as células das tabelas e, caso contrário, forneceria resultados incorretos."]
["Mensagem de confidencialidade está na célula à direita.",{"$f":"'PARÂMETROS DE PROJETO'!B3","v":"O Nome da empresa é Confidencial"}]
["Inserir informações na tabela Detalhes iniciando na célula à direita. Tipo de projeto na tabela detalhes à direita são automaticamente atualizado da tabela parâmetros na planilha parâmetros de projeto.","NOME DO PROJETO","TIPO DE PROJETO","INÍCIO ESTIMADO","TÉRMINO ESTIMADO","INÍCIO REAL","TÉRMINO REAL","HORAS DE TRABALHO ESTIMADAS","TRABALHO REAL","DURAÇÃO ESTIMADA","DURAÇÃO REAL","PARCEIRO GERAL","ADVOGADO EMPRESARIAL","DEFESA LITIGANTE","ADVOGADO DE PROPRIEDADE INTELECTUAL","ADVOGADO DE FALÊNCIA","ADMINISTRADOR DE EQUIPE","PARCEIRO GERAL 2","ADVOGADO EMPRESARIAL 2","DEFESA LITIGANTE 2","ADVOGADO DE PROPRIEDADE INTELECTUAL 2","ADVOGADO DE FALÊNCIA 2","ADMINISTRADOR DE EQUIPE 2"]
[null,"Projeto 1","Incorporação de empresas",{"$f":"TODAY()","v":"2019-02-19"},{"$f":"TODAY()+60","v":"2019-04-20"},{"$f":"TODAY()+10","v":"2019-03-01"},{"$f":"TODAY()+65","v":"2019-04-25"},200,220,{"$f":"DAYS360(Detalhes[[#This Row],[INÍCIO ESTIMADO]],Detalhes[[#This Row],[TÉRMINO ESTIMADO]],FALSE)","v":61},{"$f":"DAYS360(Detalhes[[#This Row],[INÍCIO REAL]],Detalhes[[#This Row],[TÉRMINO REAL]],FALSE)","v":54},{"$f":"INDEX(Parâmetros[],MATCH(Detalhes[[#This Row],[TIPO DE PROJETO]],Parâmetros[TIPO DE PROJETO],0),MATCH(Detalhes[[#Headers],[PARCEIRO GERAL]],Parâmetros[#Headers],0))*INDEX('PARÂMETROS DE PROJETO'!$B$12:$H$12,1,MATCH(Detalhes[[#Headers],[PARCEIRO GERAL]],Parâmetros[#Headers],0))*Detalhes[[#This Row],[HORAS DE TRABALHO ESTIMADAS]]","v":{"v":7000,"d":"R$ 7,000"}},{"$f":"INDEX(Parâmetros[],MATCH(Detalhes[[#This Row],[TIPO DE PROJETO]],Parâmetros[TIPO DE PROJETO],0),MATCH(Detalhes[[#Headers],[ADVOGADO EMPRESARIAL]],Parâmetros[#Headers],0))*INDEX('PARÂMETROS DE PROJETO'!$B$12:$H$12,1,MATCH(Detalhes[[#Headers],[ADVOGADO EMPRESARIAL]],Parâmetros[#Headers],0))*Detalhes[[#This Row],[HORAS DE TRABALHO ESTIMADAS]]","v":{"v":20000,"d":"R$ 20,000"}},{"$f":"INDEX(Parâmetros[],MATCH(Detalhes[[#This Row],[TIPO DE PROJETO]],Parâmetros[TIPO DE PROJETO],0),MATCH(Detalhes[[#Headers],[DEFESA LITIGANTE]],Parâmetros[#Headers],0))*INDEX('PARÂMETROS DE PROJETO'!$B$12:$H$12,1,MATCH(Detalhes[[#Headers],[DEFESA LITIGANTE]],Parâmetros[#Headers],0))*Detalhes[[#This Row],[HORAS DE TRABALHO ESTIMADAS]]","v":{"v":0,"d":"R$ 0"}},{"$f":"INDEX(Parâmetros[],MATCH(Detalhes[[#This Row],[TIPO DE PROJETO]],Parâmetros[TIPO DE PROJETO],0),MATCH(Detalhes[[#Headers],[ADVOGADO DE PROPRIEDADE INTELECTUAL]],Parâmetros[#Headers],0))*INDEX('PARÂMETROS DE PROJETO'!$B$12:$H$12,1,MATCH(Detalhes[[#Headers],[ADVOGADO DE PROPRIEDADE INTELECTUAL]],Parâmetros[#Headers],0))*Detalhes[[#This Row],[HORAS DE TRABALHO ESTIMADAS]]","v":{"v":0,"d":"R$ 0"}},{"$f":"INDEX(Parâmetros[],MATCH(Detalhes[[#This Row],[TIPO DE PROJETO]],Parâmetros[TIPO DE PROJETO],0),MATCH(Detalhes[[#Headers],[ADVOGADO DE FALÊNCIA]],Parâmetros[#Headers],0))*INDEX('PARÂMETROS DE PROJETO'!$B$12:$H$12,1,MATCH(Detalhes[[#Headers],[ADVOGADO DE FALÊNCIA]],Parâmetros[#Headers],0))*Detalhes[[#This Row],[HORAS DE TRABALHO ESTIMADAS]]","v":{"v":0,"d":"R$ 0"}},{"$f":"INDEX(Parâmetros[],MATCH(Detalhes[[#This Row],[TIPO DE PROJETO]],Parâmetros[TIPO DE PROJETO],0),MATCH(Detalhes[[#Headers],[ADMINISTRADOR DE EQUIPE]],Parâmetros[#Headers],0))*INDEX('PARÂMETROS DE PROJETO'!$B$12:$H$12,1,MATCH(Detalhes[[#Headers],[ADMINISTRADOR DE EQUIPE]],Parâmetros[#Headers],0))*Detalhes[[#This Row],[HORAS DE TRABALHO ESTIMADAS]]","v":{"v":12500,"d":"R$ 12,500"}},{"$f":"INDEX(Parâmetros[],MATCH(Detalhes[[#This Row],[TIPO DE PROJETO]],Parâmetros[TIPO DE PROJETO],0),MATCH(Detalhes[[#Headers],[PARCEIRO GERAL]],Parâmetros[#Headers],0))*INDEX('PARÂMETROS DE PROJETO'!$B$12:$H$12,1,MATCH(Detalhes[[#Headers],[PARCEIRO GERAL]],Parâmetros[#Headers],0))*Detalhes[[#This Row],[TRABALHO REAL]]","v":{"v":7700,"d":"R$ 7,700"}},{"$f":"INDEX(Parâmetros[],MATCH(Detalhes[[#This Row],[TIPO DE PROJETO]],Parâmetros[TIPO DE PROJETO],0),MATCH(Detalhes[[#Headers],[ADVOGADO EMPRESARIAL]],Parâmetros[#Headers],0))*INDEX('PARÂMETROS DE PROJETO'!$B$12:$H$12,1,MATCH(Detalhes[[#Headers],[ADVOGADO EMPRESARIAL]],Parâmetros[#Headers],0))*Detalhes[[#This Row],[TRABALHO REAL]]","v":{"v":22000,"d":"R$ 22,000"}},{"$f":"INDEX(Parâmetros[],MATCH(Detalhes[[#This Row],[TIPO DE PROJETO]],Parâmetros[TIPO DE PROJETO],0),MATCH(Detalhes[[#Headers],[DEFESA LITIGANTE]],Parâmetros[#Headers],0))*INDEX('PARÂMETROS DE PROJETO'!$B$12:$H$12,1,MATCH(Detalhes[[#Headers],[DEFESA LITIGANTE]],Parâmetros[#Headers],0))*Detalhes[[#This Row],[TRABALHO REAL]]","v":{"v":0,"d":"R$ 0"}},{"$f":"INDEX(Parâmetros[],MATCH(Detalhes[[#This Row],[TIPO DE PROJETO]],Parâmetros[TIPO DE PROJETO],0),MATCH(Detalhes[[#Headers],[ADVOGADO DE PROPRIEDADE INTELECTUAL]],Parâmetros[#Headers],0))*INDEX('PARÂMETROS DE PROJETO'!$B$12:$H$12,1,MATCH(Detalhes[[#Headers],[ADVOGADO DE PROPRIEDADE INTELECTUAL]],Parâmetros[#Headers],0))*Detalhes[[#This Row],[TRABALHO REAL]]","v":{"v":0,"d":"R$ 0"}},{"$f":"INDEX(Parâmetros[],MATCH(Detalhes[[#This Row],[TIPO DE PROJETO]],Parâmetros[TIPO DE PROJETO],0),MATCH(Detalhes[[#Headers],[ADVOGADO DE FALÊNCIA]],Parâmetros[#Headers],0))*INDEX('PARÂMETROS DE PROJETO'!$B$12:$H$12,1,MATCH(Detalhes[[#Headers],[ADVOGADO DE FALÊNCIA]],Parâmetros[#Headers],0))*Detalhes[[#This Row],[TRABALHO REAL]]","v":{"v":0,"d":"R$ 0"}},{"$f":"INDEX(Parâmetros[],MATCH(Detalhes[[#This Row],[TIPO DE PROJETO]],Parâmetros[TIPO DE PROJETO],0),MATCH(Detalhes[[#Headers],[ADMINISTRADOR DE EQUIPE]],Parâmetros[#Headers],0))*INDEX('PARÂMETROS DE PROJETO'!$B$12:$H$12,1,MATCH(Detalhes[[#Headers],[ADMINISTRADOR DE EQUIPE]],Parâmetros[#Headers],0))*Detalhes[[#This Row],[TRABALHO REAL]]","v":{"v":13750,"d":"R$ 13,750"}}]
[null,"Projeto 2","Aquisição de empresas",{"$f":"TODAY()+30","v":"2019-03-21"},{"$f":"TODAY()+100","v":"2019-05-30"},{"$f":"TODAY()+40","v":"2019-03-31"},{"$f":"TODAY()+110","v":"2019-06-09"},400,390,{"$f":"DAYS360(Detalhes[[#This Row],[INÍCIO ESTIMADO]],Detalhes[[#This Row],[TÉRMINO ESTIMADO]],FALSE)","v":69},{"$f":"DAYS360(Detalhes[[#This Row],[INÍCIO REAL]],Detalhes[[#This Row],[TÉRMINO REAL]],FALSE)","v":69},{"$f":"INDEX(Parâmetros[],MATCH(Detalhes[[#This Row],[TIPO DE PROJETO]],Parâmetros[TIPO DE PROJETO],0),MATCH(Detalhes[[#Headers],[PARCEIRO GERAL]],Parâmetros[#Headers],0))*INDEX('PARÂMETROS DE PROJETO'!$B$12:$H$12,1,MATCH(Detalhes[[#Headers],[PARCEIRO GERAL]],Parâmetros[#Headers],0))*Detalhes[[#This Row],[HORAS DE TRABALHO ESTIMADAS]]","v":{"v":14000,"d":"R$ 14,000"}},{"$f":"INDEX(Parâmetros[],MATCH(Detalhes[[#This Row],[TIPO DE PROJETO]],Parâmetros[TIPO DE PROJETO],0),MATCH(Detalhes[[#Headers],[ADVOGADO EMPRESARIAL]],Parâmetros[#Headers],0))*INDEX('PARÂMETROS DE PROJETO'!$B$12:$H$12,1,MATCH(Detalhes[[#Headers],[ADVOGADO EMPRESARIAL]],Parâmetros[#Headers],0))*Detalhes[[#This Row],[HORAS DE TRABALHO ESTIMADAS]]","v":{"v":40000,"d":"R$ 40,000"}},{"$f":"INDEX(Parâmetros[],MATCH(Detalhes[[#This Row],[TIPO DE PROJETO]],Parâmetros[TIPO DE PROJETO],0),MATCH(Detalhes[[#Headers],[DEFESA LITIGANTE]],Parâmetros[#Headers],0))*INDEX('PARÂMETROS DE PROJETO'!$B$12:$H$12,1,MATCH(Detalhes[[#Headers],[DEFESA LITIGANTE]],Parâmetros[#Headers],0))*Detalhes[[#This Row],[HORAS DE TRABALHO ESTIMADAS]]","v":{"v":0,"d":"R$ 0"}},{"$f":"INDEX(Parâmetros[],MATCH(Detalhes[[#This Row],[TIPO DE PROJETO]],Parâmetros[TIPO DE PROJETO],0),MATCH(Detalhes[[#Headers],[ADVOGADO DE PROPRIEDADE INTELECTUAL]],Parâmetros[#Headers],0))*INDEX('PARÂMETROS DE PROJETO'!$B$12:$H$12,1,MATCH(Detalhes[[#Headers],[ADVOGADO DE PROPRIEDADE INTELECTUAL]],Parâmetros[#Headers],0))*Detalhes[[#This Row],[HORAS DE TRABALHO ESTIMADAS]]","v":{"v":11000,"d":"R$ 11,000"}},{"$f":"INDEX(Parâmetros[],MATCH(Detalhes[[#This Row],[TIPO DE PROJETO]],Parâmetros[TIPO DE PROJETO],0),MATCH(Detalhes[[#Headers],[ADVOGADO DE FALÊNCIA]],Parâmetros[#Headers],0))*INDEX('PARÂMETROS DE PROJETO'!$B$12:$H$12,1,MATCH(Detalhes[[#Headers],[ADVOGADO DE FALÊNCIA]],Parâmetros[#Headers],0))*Detalhes[[#This Row],[HORAS DE TRABALHO ESTIMADAS]]","v":{"v":0,"d":"R$ 0"}},{"$f":"INDEX(Parâmetros[],MATCH(Detalhes[[#This Row],[TIPO DE PROJETO]],Parâmetros[TIPO DE PROJETO],0),MATCH(Detalhes[[#Headers],[ADMINISTRADOR DE EQUIPE]],Parâmetros[#Headers],0))*INDEX('PARÂMETROS DE PROJETO'!$B$12:$H$12,1,MATCH(Detalhes[[#Headers],[ADMINISTRADOR DE EQUIPE]],Parâmetros[#Headers],0))*Detalhes[[#This Row],[HORAS DE TRABALHO ESTIMADAS]]","v":{"v":20000,"d":"R$ 20,000"}},{"$f":"INDEX(Parâmetros[],MATCH(Detalhes[[#This Row],[TIPO DE PROJETO]],Parâmetros[TIPO DE PROJETO],0),MATCH(Detalhes[[#Headers],[PARCEIRO GERAL]],Parâmetros[#Headers],0))*INDEX('PARÂMETROS DE PROJETO'!$B$12:$H$12,1,MATCH(Detalhes[[#Headers],[PARCEIRO GERAL]],Parâmetros[#Headers],0))*Detalhes[[#This Row],[TRABALHO REAL]]","v":{"v":13650,"d":"R$ 13,650"}},{"$f":"INDEX(Parâmetros[],MATCH(Detalhes[[#This Row],[TIPO DE PROJETO]],Parâmetros[TIPO DE PROJETO],0),MATCH(Detalhes[[#Headers],[ADVOGADO EMPRESARIAL]],Parâmetros[#Headers],0))*INDEX('PARÂMETROS DE PROJETO'!$B$12:$H$12,1,MATCH(Detalhes[[#Headers],[ADVOGADO EMPRESARIAL]],Parâmetros[#Headers],0))*Detalhes[[#This Row],[TRABALHO REAL]]","v":{"v":39000,"d":"R$ 39,000"}},{"$f":"INDEX(Parâmetros[],MATCH(Detalhes[[#This Row],[TIPO DE PROJETO]],Parâmetros[TIPO DE PROJETO],0),MATCH(Detalhes[[#Headers],[DEFESA LITIGANTE]],Parâmetros[#Headers],0))*INDEX('PARÂMETROS DE PROJETO'!$B$12:$H$12,1,MATCH(Detalhes[[#Headers],[DEFESA LITIGANTE]],Parâmetros[#Headers],0))*Detalhes[[#This Row],[TRABALHO REAL]]","v":{"v":0,"d":"R$ 0"}},{"$f":"INDEX(Parâmetros[],MATCH(Detalhes[[#This Row],[TIPO DE PROJETO]],Parâmetros[TIPO DE PROJETO],0),MATCH(Detalhes[[#Headers],[ADVOGADO DE PROPRIEDADE INTELECTUAL]],Parâmetros[#Headers],0))*INDEX('PARÂMETROS DE PROJETO'!$B$12:$H$12,1,MATCH(Detalhes[[#Headers],[ADVOGADO DE PROPRIEDADE INTELECTUAL]],Parâmetros[#Headers],0))*Detalhes[[#This Row],[TRABALHO REAL]]","v":{"v":10725,"d":"R$ 10,725"}},{"$f":"INDEX(Parâmetros[],MATCH(Detalhes[[#This Row],[TIPO DE PROJETO]],Parâmetros[TIPO DE PROJETO],0),MATCH(Detalhes[[#Headers],[ADVOGADO DE FALÊNCIA]],Parâmetros[#Headers],0))*INDEX('PARÂMETROS DE PROJETO'!$B$12:$H$12,1,MATCH(Detalhes[[#Headers],[ADVOGADO DE FALÊNCIA]],Parâmetros[#Headers],0))*Detalhes[[#This Row],[TRABALHO REAL]]","v":{"v":0,"d":"R$ 0"}},{"$f":"INDEX(Parâmetros[],MATCH(Detalhes[[#This Row],[TIPO DE PROJETO]],Parâmetros[TIPO DE PROJETO],0),MATCH(Detalhes[[#Headers],[ADMINISTRADOR DE EQUIPE]],Parâmetros[#Headers],0))*INDEX('PARÂMETROS DE PROJETO'!$B$12:$H$12,1,MATCH(Detalhes[[#Headers],[ADMINISTRADOR DE EQUIPE]],Parâmetros[#Headers],0))*Detalhes[[#This Row],[TRABALHO REAL]]","v":{"v":19500,"d":"R$ 19,500"}}]
[null,"Projeto 3","Defesa de responsabilidade de produto",{"$f":"TODAY()+150","v":"2019-07-19"},{"$f":"TODAY()+150","v":"2019-07-19"},{"$f":"TODAY()+150","v":"2019-07-19"},{"$f":"TODAY()+170","v":"2019-08-08"},500,500,{"$f":"DAYS360(Detalhes[[#This Row],[INÍCIO ESTIMADO]],Detalhes[[#This Row],[TÉRMINO ESTIMADO]],FALSE)","v":0},{"$f":"DAYS360(Detalhes[[#This Row],[INÍCIO REAL]],Detalhes[[#This Row],[TÉRMINO REAL]],FALSE)","v":19},{"$f":"INDEX(Parâmetros[],MATCH(Detalhes[[#This Row],[TIPO DE PROJETO]],Parâmetros[TIPO DE PROJETO],0),MATCH(Detalhes[[#Headers],[PARCEIRO GERAL]],Parâmetros[#Headers],0))*INDEX('PARÂMETROS DE PROJETO'!$B$12:$H$12,1,MATCH(Detalhes[[#Headers],[PARCEIRO GERAL]],Parâmetros[#Headers],0))*Detalhes[[#This Row],[HORAS DE TRABALHO ESTIMADAS]]","v":{"v":35000,"d":"R$ 35,000"}},{"$f":"INDEX(Parâmetros[],MATCH(Detalhes[[#This Row],[TIPO DE PROJETO]],Parâmetros[TIPO DE PROJETO],0),MATCH(Detalhes[[#Headers],[ADVOGADO EMPRESARIAL]],Parâmetros[#Headers],0))*INDEX('PARÂMETROS DE PROJETO'!$B$12:$H$12,1,MATCH(Detalhes[[#Headers],[ADVOGADO EMPRESARIAL]],Parâmetros[#Headers],0))*Detalhes[[#This Row],[HORAS DE TRABALHO ESTIMADAS]]","v":{"v":0,"d":"R$ 0"}},{"$f":"INDEX(Parâmetros[],MATCH(Detalhes[[#This Row],[TIPO DE PROJETO]],Parâmetros[TIPO DE PROJETO],0),MATCH(Detalhes[[#Headers],[DEFESA LITIGANTE]],Parâmetros[#Headers],0))*INDEX('PARÂMETROS DE PROJETO'!$B$12:$H$12,1,MATCH(Detalhes[[#Headers],[DEFESA LITIGANTE]],Parâmetros[#Headers],0))*Detalhes[[#This Row],[HORAS DE TRABALHO ESTIMADAS]]","v":{"v":75000,"d":"R$ 75,000"}},{"$f":"INDEX(Parâmetros[],MATCH(Detalhes[[#This Row],[TIPO DE PROJETO]],Parâmetros[TIPO DE PROJETO],0),MATCH(Detalhes[[#Headers],[ADVOGADO DE PROPRIEDADE INTELECTUAL]],Parâmetros[#Headers],0))*INDEX('PARÂMETROS DE PROJETO'!$B$12:$H$12,1,MATCH(Detalhes[[#Headers],[ADVOGADO DE PROPRIEDADE INTELECTUAL]],Parâmetros[#Headers],0))*Detalhes[[#This Row],[HORAS DE TRABALHO ESTIMADAS]]","v":{"v":0,"d":"R$ 0"}},{"$f":"INDEX(Parâmetros[],MATCH(Detalhes[[#This Row],[TIPO DE PROJETO]],Parâmetros[TIPO DE PROJETO],0),MATCH(Detalhes[[#Headers],[ADVOGADO DE FALÊNCIA]],Parâmetros[#Headers],0))*INDEX('PARÂMETROS DE PROJETO'!$B$12:$H$12,1,MATCH(Detalhes[[#Headers],[ADVOGADO DE FALÊNCIA]],Parâmetros[#Headers],0))*Detalhes[[#This Row],[HORAS DE TRABALHO ESTIMADAS]]","v":{"v":0,"d":"R$ 0"}},{"$f":"INDEX(Parâmetros[],MATCH(Detalhes[[#This Row],[TIPO DE PROJETO]],Parâmetros[TIPO DE PROJETO],0),MATCH(Detalhes[[#Headers],[ADMINISTRADOR DE EQUIPE]],Parâmetros[#Headers],0))*INDEX('PARÂMETROS DE PROJETO'!$B$12:$H$12,1,MATCH(Detalhes[[#Headers],[ADMINISTRADOR DE EQUIPE]],Parâmetros[#Headers],0))*Detalhes[[#This Row],[HORAS DE TRABALHO ESTIMADAS]]","v":{"v":18750,"d":"R$ 18,750"}},{"$f":"INDEX(Parâmetros[],MATCH(Detalhes[[#This Row],[TIPO DE PROJETO]],Parâmetros[TIPO DE PROJETO],0),MATCH(Detalhes[[#Headers],[PARCEIRO GERAL]],Parâmetros[#Headers],0))*INDEX('PARÂMETROS DE PROJETO'!$B$12:$H$12,1,MATCH(Detalhes[[#Headers],[PARCEIRO GERAL]],Parâmetros[#Headers],0))*Detalhes[[#This Row],[TRABALHO REAL]]","v":{"v":35000,"d":"R$ 35,000"}},{"$f":"INDEX(Parâmetros[],MATCH(Detalhes[[#This Row],[TIPO DE PROJETO]],Parâmetros[TIPO DE PROJETO],0),MATCH(Detalhes[[#Headers],[ADVOGADO EMPRESARIAL]],Parâmetros[#Headers],0))*INDEX('PARÂMETROS DE PROJETO'!$B$12:$H$12,1,MATCH(Detalhes[[#Headers],[ADVOGADO EMPRESARIAL]],Parâmetros[#Headers],0))*Detalhes[[#This Row],[TRABALHO REAL]]","v":{"v":0,"d":"R$ 0"}},{"$f":"INDEX(Parâmetros[],MATCH(Detalhes[[#This Row],[TIPO DE PROJETO]],Parâmetros[TIPO DE PROJETO],0),MATCH(Detalhes[[#Headers],[DEFESA LITIGANTE]],Parâmetros[#Headers],0))*INDEX('PARÂMETROS DE PROJETO'!$B$12:$H$12,1,MATCH(Detalhes[[#Headers],[DEFESA LITIGANTE]],Parâmetros[#Headers],0))*Detalhes[[#This Row],[TRABALHO REAL]]","v":{"v":75000,"d":"R$ 75,000"}},{"$f":"INDEX(Parâmetros[],MATCH(Detalhes[[#This Row],[TIPO DE PROJETO]],Parâmetros[TIPO DE PROJETO],0),MATCH(Detalhes[[#Headers],[ADVOGADO DE PROPRIEDADE INTELECTUAL]],Parâmetros[#Headers],0))*INDEX('PARÂMETROS DE PROJETO'!$B$12:$H$12,1,MATCH(Detalhes[[#Headers],[ADVOGADO DE PROPRIEDADE INTELECTUAL]],Parâmetros[#Headers],0))*Detalhes[[#This Row],[TRABALHO REAL]]","v":{"v":0,"d":"R$ 0"}},{"$f":"INDEX(Parâmetros[],MATCH(Detalhes[[#This Row],[TIPO DE PROJETO]],Parâmetros[TIPO DE PROJETO],0),MATCH(Detalhes[[#Headers],[ADVOGADO DE FALÊNCIA]],Parâmetros[#Headers],0))*INDEX('PARÂMETROS DE PROJETO'!$B$12:$H$12,1,MATCH(Detalhes[[#Headers],[ADVOGADO DE FALÊNCIA]],Parâmetros[#Headers],0))*Detalhes[[#This Row],[TRABALHO REAL]]","v":{"v":0,"d":"R$ 0"}},{"$f":"INDEX(Parâmetros[],MATCH(Detalhes[[#This Row],[TIPO DE PROJETO]],Parâmetros[TIPO DE PROJETO],0),MATCH(Detalhes[[#Headers],[ADMINISTRADOR DE EQUIPE]],Parâmetros[#Headers],0))*INDEX('PARÂMETROS DE PROJETO'!$B$12:$H$12,1,MATCH(Detalhes[[#Headers],[ADMINISTRADOR DE EQUIPE]],Parâmetros[#Headers],0))*Detalhes[[#This Row],[TRABALHO REAL]]","v":{"v":18750,"d":"R$ 18,750"}}]
[null,"Projeto 4","Aplicativo de patente",{"$f":"TODAY()+200","v":"2019-09-07"},{"$f":"TODAY()+230","v":"2019-10-07"},{"$f":"TODAY()+230","v":"2019-10-07"},{"$f":"TODAY()+230","v":"2019-10-07"},150,145,{"$f":"DAYS360(Detalhes[[#This Row],[INÍCIO ESTIMADO]],Detalhes[[#This Row],[TÉRMINO ESTIMADO]],FALSE)","v":30},{"$f":"DAYS360(Detalhes[[#This Row],[INÍCIO REAL]],Detalhes[[#This Row],[TÉRMINO REAL]],FALSE)","v":0},{"$f":"INDEX(Parâmetros[],MATCH(Detalhes[[#This Row],[TIPO DE PROJETO]],Parâmetros[TIPO DE PROJETO],0),MATCH(Detalhes[[#Headers],[PARCEIRO GERAL]],Parâmetros[#Headers],0))*INDEX('PARÂMETROS DE PROJETO'!$B$12:$H$12,1,MATCH(Detalhes[[#Headers],[PARCEIRO GERAL]],Parâmetros[#Headers],0))*Detalhes[[#This Row],[HORAS DE TRABALHO ESTIMADAS]]","v":{"v":5250,"d":"R$ 5,250"}},{"$f":"INDEX(Parâmetros[],MATCH(Detalhes[[#This Row],[TIPO DE PROJETO]],Parâmetros[TIPO DE PROJETO],0),MATCH(Detalhes[[#Headers],[ADVOGADO EMPRESARIAL]],Parâmetros[#Headers],0))*INDEX('PARÂMETROS DE PROJETO'!$B$12:$H$12,1,MATCH(Detalhes[[#Headers],[ADVOGADO EMPRESARIAL]],Parâmetros[#Headers],0))*Detalhes[[#This Row],[HORAS DE TRABALHO ESTIMADAS]]","v":{"v":0,"d":"R$ 0"}},{"$f":"INDEX(Parâmetros[],MATCH(Detalhes[[#This Row],[TIPO DE PROJETO]],Parâmetros[TIPO DE PROJETO],0),MATCH(Detalhes[[#Headers],[DEFESA LITIGANTE]],Parâmetros[#Headers],0))*INDEX('PARÂMETROS DE PROJETO'!$B$12:$H$12,1,MATCH(Detalhes[[#Headers],[DEFESA LITIGANTE]],Parâmetros[#Headers],0))*Detalhes[[#This Row],[HORAS DE TRABALHO ESTIMADAS]]","v":{"v":0,"d":"R$ 0"}},{"$f":"INDEX(Parâmetros[],MATCH(Detalhes[[#This Row],[TIPO DE PROJETO]],Parâmetros[TIPO DE PROJETO],0),MATCH(Detalhes[[#Headers],[ADVOGADO DE PROPRIEDADE INTELECTUAL]],Parâmetros[#Headers],0))*INDEX('PARÂMETROS DE PROJETO'!$B$12:$H$12,1,MATCH(Detalhes[[#Headers],[ADVOGADO DE PROPRIEDADE INTELECTUAL]],Parâmetros[#Headers],0))*Detalhes[[#This Row],[HORAS DE TRABALHO ESTIMADAS]]","v":{"v":24750,"d":"R$ 24,750"}},{"$f":"INDEX(Parâmetros[],MATCH(Detalhes[[#This Row],[TIPO DE PROJETO]],Parâmetros[TIPO DE PROJETO],0),MATCH(Detalhes[[#Headers],[ADVOGADO DE FALÊNCIA]],Parâmetros[#Headers],0))*INDEX('PARÂMETROS DE PROJETO'!$B$12:$H$12,1,MATCH(Detalhes[[#Headers],[ADVOGADO DE FALÊNCIA]],Parâmetros[#Headers],0))*Detalhes[[#This Row],[HORAS DE TRABALHO ESTIMADAS]]","v":{"v":0,"d":"R$ 0"}},{"$f":"INDEX(Parâmetros[],MATCH(Detalhes[[#This Row],[TIPO DE PROJETO]],Parâmetros[TIPO DE PROJETO],0),MATCH(Detalhes[[#Headers],[ADMINISTRADOR DE EQUIPE]],Parâmetros[#Headers],0))*INDEX('PARÂMETROS DE PROJETO'!$B$12:$H$12,1,MATCH(Detalhes[[#Headers],[ADMINISTRADOR DE EQUIPE]],Parâmetros[#Headers],0))*Detalhes[[#This Row],[HORAS DE TRABALHO ESTIMADAS]]","v":{"v":5625,"d":"R$ 5,625"}},{"$f":"INDEX(Parâmetros[],MATCH(Detalhes[[#This Row],[TIPO DE PROJETO]],Parâmetros[TIPO DE PROJETO],0),MATCH(Detalhes[[#Headers],[PARCEIRO GERAL]],Parâmetros[#Headers],0))*INDEX('PARÂMETROS DE PROJETO'!$B$12:$H$12,1,MATCH(Detalhes[[#Headers],[PARCEIRO GERAL]],Parâmetros[#Headers],0))*Detalhes[[#This Row],[TRABALHO REAL]]","v":{"v":5075,"d":"R$ 5,075"}},{"$f":"INDEX(Parâmetros[],MATCH(Detalhes[[#This Row],[TIPO DE PROJETO]],Parâmetros[TIPO DE PROJETO],0),MATCH(Detalhes[[#Headers],[ADVOGADO EMPRESARIAL]],Parâmetros[#Headers],0))*INDEX('PARÂMETROS DE PROJETO'!$B$12:$H$12,1,MATCH(Detalhes[[#Headers],[ADVOGADO EMPRESARIAL]],Parâmetros[#Headers],0))*Detalhes[[#This Row],[TRABALHO REAL]]","v":{"v":0,"d":"R$ 0"}},{"$f":"INDEX(Parâmetros[],MATCH(Detalhes[[#This Row],[TIPO DE PROJETO]],Parâmetros[TIPO DE PROJETO],0),MATCH(Detalhes[[#Headers],[DEFESA LITIGANTE]],Parâmetros[#Headers],0))*INDEX('PARÂMETROS DE PROJETO'!$B$12:$H$12,1,MATCH(Detalhes[[#Headers],[DEFESA LITIGANTE]],Parâmetros[#Headers],0))*Detalhes[[#This Row],[TRABALHO REAL]]","v":{"v":0,"d":"R$ 0"}},{"$f":"INDEX(Parâmetros[],MATCH(Detalhes[[#This Row],[TIPO DE PROJETO]],Parâmetros[TIPO DE PROJETO],0),MATCH(Detalhes[[#Headers],[ADVOGADO DE PROPRIEDADE INTELECTUAL]],Parâmetros[#Headers],0))*INDEX('PARÂMETROS DE PROJETO'!$B$12:$H$12,1,MATCH(Detalhes[[#Headers],[ADVOGADO DE PROPRIEDADE INTELECTUAL]],Parâmetros[#Headers],0))*Detalhes[[#This Row],[TRABALHO REAL]]","v":{"v":23925,"d":"R$ 23,925"}},{"$f":"INDEX(Parâmetros[],MATCH(Detalhes[[#This Row],[TIPO DE PROJETO]],Parâmetros[TIPO DE PROJETO],0),MATCH(Detalhes[[#Headers],[ADVOGADO DE FALÊNCIA]],Parâmetros[#Headers],0))*INDEX('PARÂMETROS DE PROJETO'!$B$12:$H$12,1,MATCH(Detalhes[[#Headers],[ADVOGADO DE FALÊNCIA]],Parâmetros[#Headers],0))*Detalhes[[#This Row],[TRABALHO REAL]]","v":{"v":0,"d":"R$ 0"}},{"$f":"INDEX(Parâmetros[],MATCH(Detalhes[[#This Row],[TIPO DE PROJETO]],Parâmetros[TIPO DE PROJETO],0),MATCH(Detalhes[[#Headers],[ADMINISTRADOR DE EQUIPE]],Parâmetros[#Headers],0))*INDEX('PARÂMETROS DE PROJETO'!$B$12:$H$12,1,MATCH(Detalhes[[#Headers],[ADMINISTRADOR DE EQUIPE]],Parâmetros[#Headers],0))*Detalhes[[#This Row],[TRABALHO REAL]]","v":{"v":5437.5,"d":"R$ 5,438"}}]
[null,"Projeto 5","Ação judicial do funcionário",{"$f":"TODAY()+220","v":"2019-09-27"},{"$f":"TODAY()+250","v":"2019-10-27"},{"$f":"TODAY()+230","v":"2019-10-07"},{"$f":"TODAY()+259","v":"2019-11-05"},250,255,{"$f":"DAYS360(Detalhes[[#This Row],[INÍCIO ESTIMADO]],Detalhes[[#This Row],[TÉRMINO ESTIMADO]],FALSE)","v":30},{"$f":"DAYS360(Detalhes[[#This Row],[INÍCIO REAL]],Detalhes[[#This Row],[TÉRMINO REAL]],FALSE)","v":28},{"$f":"INDEX(Parâmetros[],MATCH(Detalhes[[#This Row],[TIPO DE PROJETO]],Parâmetros[TIPO DE PROJETO],0),MATCH(Detalhes[[#Headers],[PARCEIRO GERAL]],Parâmetros[#Headers],0))*INDEX('PARÂMETROS DE PROJETO'!$B$12:$H$12,1,MATCH(Detalhes[[#Headers],[PARCEIRO GERAL]],Parâmetros[#Headers],0))*Detalhes[[#This Row],[HORAS DE TRABALHO ESTIMADAS]]","v":{"v":17500,"d":"R$ 17,500"}},{"$f":"INDEX(Parâmetros[],MATCH(Detalhes[[#This Row],[TIPO DE PROJETO]],Parâmetros[TIPO DE PROJETO],0),MATCH(Detalhes[[#Headers],[ADVOGADO EMPRESARIAL]],Parâmetros[#Headers],0))*INDEX('PARÂMETROS DE PROJETO'!$B$12:$H$12,1,MATCH(Detalhes[[#Headers],[ADVOGADO EMPRESARIAL]],Parâmetros[#Headers],0))*Detalhes[[#This Row],[HORAS DE TRABALHO ESTIMADAS]]","v":{"v":6250,"d":"R$ 6,250"}},{"$f":"INDEX(Parâmetros[],MATCH(Detalhes[[#This Row],[TIPO DE PROJETO]],Parâmetros[TIPO DE PROJETO],0),MATCH(Detalhes[[#Headers],[DEFESA LITIGANTE]],Parâmetros[#Headers],0))*INDEX('PARÂMETROS DE PROJETO'!$B$12:$H$12,1,MATCH(Detalhes[[#Headers],[DEFESA LITIGANTE]],Parâmetros[#Headers],0))*Detalhes[[#This Row],[HORAS DE TRABALHO ESTIMADAS]]","v":{"v":30000,"d":"R$ 30,000"}},{"$f":"INDEX(Parâmetros[],MATCH(Detalhes[[#This Row],[TIPO DE PROJETO]],Parâmetros[TIPO DE PROJETO],0),MATCH(Detalhes[[#Headers],[ADVOGADO DE PROPRIEDADE INTELECTUAL]],Parâmetros[#Headers],0))*INDEX('PARÂMETROS DE PROJETO'!$B$12:$H$12,1,MATCH(Detalhes[[#Headers],[ADVOGADO DE PROPRIEDADE INTELECTUAL]],Parâmetros[#Headers],0))*Detalhes[[#This Row],[HORAS DE TRABALHO ESTIMADAS]]","v":{"v":0,"d":"R$ 0"}},{"$f":"INDEX(Parâmetros[],MATCH(Detalhes[[#This Row],[TIPO DE PROJETO]],Parâmetros[TIPO DE PROJETO],0),MATCH(Detalhes[[#Headers],[ADVOGADO DE FALÊNCIA]],Parâmetros[#Headers],0))*INDEX('PARÂMETROS DE PROJETO'!$B$12:$H$12,1,MATCH(Detalhes[[#Headers],[ADVOGADO DE FALÊNCIA]],Parâmetros[#Headers],0))*Detalhes[[#This Row],[HORAS DE TRABALHO ESTIMADAS]]","v":{"v":0,"d":"R$ 0"}},{"$f":"INDEX(Parâmetros[],MATCH(Detalhes[[#This Row],[TIPO DE PROJETO]],Parâmetros[TIPO DE PROJETO],0),MATCH(Detalhes[[#Headers],[ADMINISTRADOR DE EQUIPE]],Parâmetros[#Headers],0))*INDEX('PARÂMETROS DE PROJETO'!$B$12:$H$12,1,MATCH(Detalhes[[#Headers],[ADMINISTRADOR DE EQUIPE]],Parâmetros[#Headers],0))*Detalhes[[#This Row],[HORAS DE TRABALHO ESTIMADAS]]","v":{"v":9375,"d":"R$ 9,375"}},{"$f":"INDEX(Parâmetros[],MATCH(Detalhes[[#This Row],[TIPO DE PROJETO]],Parâmetros[TIPO DE PROJETO],0),MATCH(Detalhes[[#Headers],[PARCEIRO GERAL]],Parâmetros[#Headers],0))*INDEX('PARÂMETROS DE PROJETO'!$B$12:$H$12,1,MATCH(Detalhes[[#Headers],[PARCEIRO GERAL]],Parâmetros[#Headers],0))*Detalhes[[#This Row],[TRABALHO REAL]]","v":{"v":17850,"d":"R$ 17,850"}},{"$f":"INDEX(Parâmetros[],MATCH(Detalhes[[#This Row],[TIPO DE PROJETO]],Parâmetros[TIPO DE PROJETO],0),MATCH(Detalhes[[#Headers],[ADVOGADO EMPRESARIAL]],Parâmetros[#Headers],0))*INDEX('PARÂMETROS DE PROJETO'!$B$12:$H$12,1,MATCH(Detalhes[[#Headers],[ADVOGADO EMPRESARIAL]],Parâmetros[#Headers],0))*Detalhes[[#This Row],[TRABALHO REAL]]","v":{"v":6375,"d":"R$ 6,375"}},{"$f":"INDEX(Parâmetros[],MATCH(Detalhes[[#This Row],[TIPO DE PROJETO]],Parâmetros[TIPO DE PROJETO],0),MATCH(Detalhes[[#Headers],[DEFESA LITIGANTE]],Parâmetros[#Headers],0))*INDEX('PARÂMETROS DE PROJETO'!$B$12:$H$12,1,MATCH(Detalhes[[#Headers],[DEFESA LITIGANTE]],Parâmetros[#Headers],0))*Detalhes[[#This Row],[TRABALHO REAL]]","v":{"v":30600,"d":"R$ 30,600"}},{"$f":"INDEX(Parâmetros[],MATCH(Detalhes[[#This Row],[TIPO DE PROJETO]],Parâmetros[TIPO DE PROJETO],0),MATCH(Detalhes[[#Headers],[ADVOGADO DE PROPRIEDADE INTELECTUAL]],Parâmetros[#Headers],0))*INDEX('PARÂMETROS DE PROJETO'!$B$12:$H$12,1,MATCH(Detalhes[[#Headers],[ADVOGADO DE PROPRIEDADE INTELECTUAL]],Parâmetros[#Headers],0))*Detalhes[[#This Row],[TRABALHO REAL]]","v":{"v":0,"d":"R$ 0"}},{"$f":"INDEX(Parâmetros[],MATCH(Detalhes[[#This Row],[TIPO DE PROJETO]],Parâmetros[TIPO DE PROJETO],0),MATCH(Detalhes[[#Headers],[ADVOGADO DE FALÊNCIA]],Parâmetros[#Headers],0))*INDEX('PARÂMETROS DE PROJETO'!$B$12:$H$12,1,MATCH(Detalhes[[#Headers],[ADVOGADO DE FALÊNCIA]],Parâmetros[#Headers],0))*Detalhes[[#This Row],[TRABALHO REAL]]","v":{"v":0,"d":"R$ 0"}},{"$f":"INDEX(Parâmetros[],MATCH(Detalhes[[#This Row],[TIPO DE PROJETO]],Parâmetros[TIPO DE PROJETO],0),MATCH(Detalhes[[#Headers],[ADMINISTRADOR DE EQUIPE]],Parâmetros[#Headers],0))*INDEX('PARÂMETROS DE PROJETO'!$B$12:$H$12,1,MATCH(Detalhes[[#Headers],[ADMINISTRADOR DE EQUIPE]],Parâmetros[#Headers],0))*Detalhes[[#This Row],[TRABALHO REAL]]","v":{"v":9562.5,"d":"R$ 9,563"}}]
[null,"TOTAL",{"$nulls":5},{"$f":"SUBTOTAL(109,Detalhes[HORAS DE TRABALHO ESTIMADAS])","v":1500},{"$f":"SUBTOTAL(109,Detalhes[TRABALHO REAL])","v":1510},{"$f":"SUBTOTAL(109,Detalhes[DURAÇÃO ESTIMADA])","v":190},{"$f":"SUBTOTAL(109,Detalhes[DURAÇÃO REAL])","v":170}]

{"sheet":"TOTAIS DO PROJETO","index":3,"n_rows":11,"n_cols":16,"rows_kept":11,"merged":[[3,2,3,7],[3,8,3,13],[3,15,14,19]]}
["Obtenha os totais do projeto nesta planilha. O nome do cliente é atualizado automaticamente na célula à direita. Há instruções úteis nas células desta coluna. Pressione Seta para baixo para começar.",{"$f":"'PARÂMETROS DE PROJETO'!B1","v":"Nome da empresa"}]
["O título desta planilha está na célula à direita.",{"$f":"'PARÂMETROS DE PROJETO'!B2","v":"Planejamento de projeto de advocacia"}]
["Mensagem de confidencialidade está na célula à direita.",{"$f":"'PARÂMETROS DE PROJETO'!B3","v":"O Nome da empresa é Confidencial"}]
["Rótulo estimado está na célula C4, etiquetas real na célula I4, e dica de informações na célula P4.",null,"ESTIMADO",{"$nulls":5},"REAL",{"$nulls":6},"INFORMAÇÕES: \nEsta tabela dinâmica não será atualizada automaticamente.  Para atualizá-la, selecione-a (qualquer célula dentro da tabela dinâmica) com as ferramentas da tabela dinâmica | Selecione a guia analisar da faixa de opções e selecione atualizar.  Ou pressione SHIFT + F10, selecionando a tabela dinâmica e selecione Atualizar."]
["Tabela dinâmica iniciando na célula à direita é atualizada automaticamente","NOME DO PROJETO","PARCEIRO GERAL ","NEGÓCIOS ","DEFESA LITIGANTE ","PROPRIEDADE INTELECTUAL ","FALÊNCIA ","ADMINISTRADOR DE EQUIPE ","PARCEIRO GERAL  ","NEGÓCIOS  ","DEFESA LITIGANTE  ","FALÊNCIA  ","PROPRIEDADE INTELECTUAL  ","ADMINISTRADOR DE EQUIPE  "]
[null,"Projeto 1",{"v":7000,"d":"R$ 7,000.00"},{"v":20000,"d":"R$ 20,000.00"},{"v":0,"d":"R$ 0.00"},{"v":0,"d":"R$ 0.00"},{"v":0,"d":"R$ 0.00"},{"v":12500,"d":"R$ 12,500.00"},{"v":7700,"d":"R$ 7,700.00"},{"v":22000,"d":"R$ 22,000.00"},{"v":0,"d":"R$ 0.00"},{"v":0,"d":"R$ 0.00"},{"v":0,"d":"R$ 0.00"},{"v":13750,"d":"R$ 13,750.00"}]
[null,"Projeto 2",{"v":14000,"d":"R$ 14,000.00"},{"v":40000,"d":"R$ 40,000.00"},{"v":0,"d":"R$ 0.00"},{"v":11000,"d":"R$ 11,000.00"},{"v":0,"d":"R$ 0.00"},{"v":20000,"d":"R$ 20,000.00"},{"v":13650,"d":"R$ 13,650.00"},{"v":39000,"d":"R$ 39,000.00"},{"v":0,"d":"R$ 0.00"},{"v":10725,"d":"R$ 10,725.00"},{"v":0,"d":"R$ 0.00"},{"v":19500,"d":"R$ 19,500.00"}]
[null,"Projeto 3",{"v":35000,"d":"R$ 35,000.00"},{"v":0,"d":"R$ 0.00"},{"v":75000,"d":"R$ 75,000.00"},{"v":0,"d":"R$ 0.00"},{"v":0,"d":"R$ 0.00"},{"v":18750,"d":"R$ 18,750.00"},{"v":35000,"d":"R$ 35,000.00"},{"v":0,"d":"R$ 0.00"},{"v":75000,"d":"R$ 75,000.00"},{"v":0,"d":"R$ 0.00"},{"v":0,"d":"R$ 0.00"},{"v":18750,"d":"R$ 18,750.00"}]
[null,"Projeto 4",{"v":5250,"d":"R$ 5,250.00"},{"v":0,"d":"R$ 0.00"},{"v":0,"d":"R$ 0.00"},{"v":24750,"d":"R$ 24,750.00"},{"v":0,"d":"R$ 0.00"},{"v":5625,"d":"R$ 5,625.00"},{"v":5075,"d":"R$ 5,075.00"},{"v":0,"d":"R$ 0.00"},{"v":0,"d":"R$ 0.00"},{"v":23925,"d":"R$ 23,925.00"},{"v":0,"d":"R$ 0.00"},{"v":5437.5,"d":"R$ 5,437.50"}]
[null,"Projeto 5",{"v":17500,"d":"R$ 17,500.00"},{"v":6250,"d":"R$ 6,250.00"},{"v":30000,"d":"R$ 30,000.00"},{"v":0,"d":"R$ 0.00"},{"v":0,"d":"R$ 0.00"},{"v":9375,"d":"R$ 9,375.00"},{"v":17850,"d":"R$ 17,850.00"},{"v":6375,"d":"R$ 6,375.00"},{"v":30600,"d":"R$ 30,600.00"},{"v":0,"d":"R$ 0.00"},{"v":0,"d":"R$ 0.00"},{"v":9562.5,"d":"R$ 9,562.50"}]
[null,"Total Geral",{"v":78750,"d":"R$ 78,750.00"},{"v":66250,"d":"R$ 66,250.00"},{"v":105000,"d":"R$ 105,000.00"},{"v":35750,"d":"R$ 35,750.00"},{"v":0,"d":"R$ 0.00"},{"v":66250,"d":"R$ 66,250.00"},{"v":79275,"d":"R$ 79,275.00"},{"v":67375,"d":"R$ 67,375.00"},{"v":105600,"d":"R$ 105,600.00"},{"v":34650,"d":"R$ 34,650.00"},{"v":0,"d":"R$ 0.00"},{"v":67000,"d":"R$ 67,000.00"}]